[Event "Titled Tuesday Blitz September 28 2021"]
[White "Schmakel, Sam"]
[Black "Seemann, Jakub"]
[WhiteFideId "2039311"]
[BlackFideId "21874697"]
[WhiteElo "2356"]
[BlackElo "1849"]
[Result "0-1"]
[Round "06"]
[TimeControl "180+1"]
[Date "2021.09.28"]
[WhiteClock "0:00:02"]
[BlackClock "0:00:02"]

1. d4 {[%clk 0:03:00]}  Nf6 {[%clk 0:02:58]} 2. Bf4 {[%clk 0:02:59]}  g6 {[%clk 0:02:59]} 3. Nc3 {[%clk 0:02:59]}  d5 {[%clk 0:02:57]} 4. e3 {[%clk 0:03:00]}  Bg7 {[%clk 0:02:57]} 5. h4 {[%clk 0:03:00]}  c5 {[%clk 0:02:56]} 6. dxc5 {[%clk 0:02:56]}  Nc6 {[%clk 0:02:54]} 7. Nf3 {[%clk 0:02:45]}  Bg4 {[%clk 0:02:47]} 8. Bb5 {[%clk 0:02:35]}  Qa5 {[%clk 0:02:35]} 9. Qd2 {[%clk 0:02:17]}  Bxf3 {[%clk 0:02:27]} 10. gxf3 {[%clk 0:02:17]}  a6 {[%clk 0:02:19]} 11. Bxc6+ {[%clk 0:01:49]}  bxc6 {[%clk 0:02:20]} 12. Be5 {[%clk 0:01:49]}  Qxc5 {[%clk 0:02:14]} 13. h5 {[%clk 0:01:49]}  Nxh5 {[%clk 0:02:09]} 14. f4 {[%clk 0:01:03]}  Nf6 {[%clk 0:02:02]} 15. O-O-O {[%clk 0:01:02]}  O-O {[%clk 0:01:56]} 16. Rh3 {[%clk 0:01:00]}  Rab8 {[%clk 0:01:50]} 17. Bxb8 {[%clk 0:00:54]}  Rxb8 {[%clk 0:01:50]} 18. Qd4 {[%clk 0:00:46]}  Qd6 {[%clk 0:01:47]} 19. Qa7 {[%clk 0:00:26]}  h5 {[%clk 0:01:16]} 20. b3 {[%clk 0:00:07]}  Kh7 {[%clk 0:01:08]} 21. Qxa6 {[%clk 0:00:05]}  Qb4 {[%clk 0:00:59]} 22. Qd3 {[%clk 0:00:03]}  Ne4 {[%clk 0:00:48]} 23. Nxe4 {[%clk 0:00:02]}  dxe4 {[%clk 0:00:47]} 24. Qc4 {[%clk 0:00:03]}  Qa3+ {[%clk 0:00:13]} 25. Kd2 {[%clk 0:00:03]}  Qxa2 {[%clk 0:00:11]} 26. Qxe4 {[%clk 0:00:02]}  f5 {[%clk 0:00:06]} 27. Qc4 {[%clk 0:00:01]}  Qa5+ {[%clk 0:00:02]} 28. Ke2 {[%clk 0:00:02]}  e5 {[%clk 0:00:02]} 29. fxe5 {[%clk 0:00:01]}  Qxe5 {[%clk 0:00:03]} 30. Qxc6 {[%clk 0:00:02]}  Re8 {[%clk 0:00:02]} 31. Rg1 {[%clk 0:00:02]}  Re6 {[%clk 0:00:02]} 32. Qc4 {[%clk 0:00:02]}  Qd6 {[%clk 0:00:02]} 33. Rd1 {[%clk 0:00:03]}  Qe5 {[%clk 0:00:01]} 34. Rd5 {[%clk 0:00:03]}  Qf6 {[%clk 0:00:02]} 35. Rh1 {[%clk 0:00:03]}  f4 {[%clk 0:00:02]} 36. Rd4 {[%clk 0:00:01]}  fxe3 {[%clk 0:00:02]} 37. Re4 {[%clk 0:00:01]}  Qxf2+ {[%clk 0:00:01]} 38. Kd3 {[%clk 0:00:02]}  Qd2# {[%clk 0:00:02]} 0-1


[Site "https://www.chess.com"]

[Event "Titled Tuesday Blitz September 28 2021"]
[White "Seo, Jung Min"]
[Black "Petesch, Gabriel"]
[WhiteFideId "1734687"]
[BlackFideId "2032465"]
[WhiteElo "2486"]
[BlackElo "2374"]
[Result "1-0"]
[Round "06"]
[TimeControl "180+1"]
[Date "2021.09.28"]
[WhiteClock "0:00:32"]
[BlackClock "0:00:01"]

1. e4 {[%clk 0:03:00]}  e5 {[%clk 0:02:57]} 2. Nf3 {[%clk 0:03:01]}  Nc6 {[%clk 0:02:56]} 3. Bb5 {[%clk 0:03:01]}  Nf6 {[%clk 0:02:52]} 4. d3 {[%clk 0:02:58]}  d6 {[%clk 0:02:50]} 5. c3 {[%clk 0:02:56]}  Be7 {[%clk 0:02:48]} 6. O-O {[%clk 0:02:56]}  O-O {[%clk 0:02:42]} 7. Re1 {[%clk 0:02:56]}  Bd7 {[%clk 0:02:32]} 8. Nbd2 {[%clk 0:02:53]}  Na5 {[%clk 0:02:30]} 9. Bxd7 {[%clk 0:02:48]}  Qxd7 {[%clk 0:02:29]} 10. d4 {[%clk 0:02:48]}  Nc6 {[%clk 0:02:21]} 11. Nf1 {[%clk 0:02:46]}  Rfe8 {[%clk 0:02:14]} 12. Ng3 {[%clk 0:02:46]}  g6 {[%clk 0:02:10]} 13. h3 {[%clk 0:02:39]}  Bf8 {[%clk 0:02:09]} 14. Bg5 {[%clk 0:02:38]}  Bg7 {[%clk 0:02:09]} 15. Qd3 {[%clk 0:02:36]}  h6 {[%clk 0:02:04]} 16. Bd2 {[%clk 0:02:36]}  Nh7 {[%clk 0:01:58]} 17. Rad1 {[%clk 0:02:32]}  a6 {[%clk 0:01:58]} 18. Be3 {[%clk 0:02:22]}  Qe7 {[%clk 0:01:57]} 19. c4 {[%clk 0:02:09]}  exd4 {[%clk 0:01:39]} 20. Nxd4 {[%clk 0:02:08]}  Nxd4 {[%clk 0:01:36]} 21. Bxd4 {[%clk 0:02:08]}  Bxd4 {[%clk 0:01:31]} 22. Qxd4 {[%clk 0:02:08]}  Qe5 {[%clk 0:01:30]} 23. Qd2 {[%clk 0:02:08]}  Kg7 {[%clk 0:01:29]} 24. b3 {[%clk 0:02:07]}  h5 {[%clk 0:01:27]} 25. Nf1 {[%clk 0:02:00]}  Nf6 {[%clk 0:01:21]} 26. f3 {[%clk 0:01:59]}  a5 {[%clk 0:01:15]} 27. Ne3 {[%clk 0:01:57]}  a4 {[%clk 0:01:14]} 28. Nd5 {[%clk 0:01:56]}  Nxd5 {[%clk 0:01:12]} 29. exd5 {[%clk 0:01:40]}  Qf6 {[%clk 0:01:08]} 30. Rxe8 {[%clk 0:01:37]}  Rxe8 {[%clk 0:01:07]} 31. bxa4 {[%clk 0:01:36]}  b6 {[%clk 0:00:58]} 32. a5 {[%clk 0:01:33]}  bxa5 {[%clk 0:00:55]} 33. Qxa5 {[%clk 0:01:32]}  Re2 {[%clk 0:00:50]} 34. Kh1 {[%clk 0:01:22]}  Qe7 {[%clk 0:00:22]} 35. Qc3+ {[%clk 0:01:17]}  Kh7 {[%clk 0:00:18]} 36. a4 {[%clk 0:01:16]}  Ra2 {[%clk 0:00:16]} 37. a5 {[%clk 0:01:08]}  Rxg2 {[%clk 0:00:12]} 38. Kxg2 {[%clk 0:01:03]}  Qe2+ {[%clk 0:00:12]} 39. Kg1 {[%clk 0:01:04]}  Qxd1+ {[%clk 0:00:12]} 40. Kf2 {[%clk 0:01:04]}  Qa4 {[%clk 0:00:10]} 41. Ke3 {[%clk 0:00:53]}  Kg8 {[%clk 0:00:09]} 42. h4 {[%clk 0:00:53]}  Qe8+ {[%clk 0:00:09]} 43. Kf4 {[%clk 0:00:51]}  Qa4 {[%clk 0:00:06]} 44. Kg5 {[%clk 0:00:49]}  Qe8 {[%clk 0:00:04]} 45. a6 {[%clk 0:00:38]}  Qa4 {[%clk 0:00:04]} 46. Kh6 {[%clk 0:00:35]}  f6 {[%clk 0:00:01]} 47. Qxf6 {[%clk 0:00:33]}  Qd7 {[%clk 0:00:01]} 48. Qe6+ {[%clk 0:00:32]} 1-0


[Site "https://www.chess.com"]

[Event "Titled Tuesday Blitz September 28 2021"]
[White "Sethuraman, S.P."]
[Black "Vokhidov, Shamsiddin"]
[WhiteFideId "5021596"]
[BlackFideId "14204223"]
[WhiteElo "2477"]
[BlackElo "2616"]
[Result "1/2-1/2"]
[Round "06"]
[TimeControl "180+1"]
[Date "2021.09.28"]
[WhiteClock "0:00:13"]
[BlackClock "0:00:07"]

1. d4 {[%clk 0:03:00]}  Nf6 {[%clk 0:02:59]} 2. c4 {[%clk 0:03:00]}  e6 {[%clk 0:02:59]} 3. Nf3 {[%clk 0:03:01]}  d5 {[%clk 0:02:59]} 4. Nc3 {[%clk 0:03:01]}  Bb4 {[%clk 0:02:59]} 5. cxd5 {[%clk 0:03:00]}  exd5 {[%clk 0:03:00]} 6. Bg5 {[%clk 0:03:01]}  h6 {[%clk 0:03:00]} 7. Bh4 {[%clk 0:03:01]}  O-O {[%clk 0:02:59]} 8. e3 {[%clk 0:03:01]}  Bf5 {[%clk 0:02:59]} 9. Be2 {[%clk 0:02:59]}  Nbd7 {[%clk 0:02:47]} 10. O-O {[%clk 0:02:58]}  c6 {[%clk 0:02:46]} 11. Qb3 {[%clk 0:02:54]}  a5 {[%clk 0:02:38]} 12. a3 {[%clk 0:02:42]}  Bxc3 {[%clk 0:02:37]} 13. bxc3 {[%clk 0:02:42]}  Qb6 {[%clk 0:02:30]} 14. Qa2 {[%clk 0:02:29]}  Ne4 {[%clk 0:02:16]} 15. Rfc1 {[%clk 0:02:28]}  Rfe8 {[%clk 0:01:46]} 16. c4 {[%clk 0:02:27]}  dxc4 {[%clk 0:01:40]} 17. Bxc4 {[%clk 0:02:28]}  Be6 {[%clk 0:01:40]} 18. Rab1 {[%clk 0:02:26]}  Qc7 {[%clk 0:01:33]} 19. Bg3 {[%clk 0:01:23]}  Nxg3 {[%clk 0:01:31]} 20. hxg3 {[%clk 0:01:24]}  Nf6 {[%clk 0:01:14]} 21. Ne5 {[%clk 0:01:22]}  Bxc4 {[%clk 0:01:06]} 22. Qxc4 {[%clk 0:01:21]}  Re7 {[%clk 0:01:06]} 23. a4 {[%clk 0:01:19]}  Nd5 {[%clk 0:01:03]} 24. e4 {[%clk 0:01:05]}  Nb4 {[%clk 0:01:00]} 25. Rb3 {[%clk 0:01:04]}  Qd6 {[%clk 0:00:52]} 26. Rf3 {[%clk 0:01:03]}  Qe6 {[%clk 0:00:52]} 27. Qxe6 {[%clk 0:00:55]}  Rxe6 {[%clk 0:00:53]} 28. Nxf7 {[%clk 0:00:37]}  Rxe4 {[%clk 0:00:52]} 29. Nd6 {[%clk 0:00:37]}  Re7 {[%clk 0:00:43]} 30. Rc5 {[%clk 0:00:37]}  Rd8 {[%clk 0:00:37]} 31. Nf5 {[%clk 0:00:33]}  Re1+ {[%clk 0:00:35]} 32. Kh2 {[%clk 0:00:33]}  Rd5 {[%clk 0:00:36]} 33. g4 {[%clk 0:00:19]}  Rxc5 {[%clk 0:00:25]} 34. dxc5 {[%clk 0:00:20]}  Re4 {[%clk 0:00:25]} 35. Nd6 {[%clk 0:00:19]}  Rxg4 {[%clk 0:00:23]} 36. Nxb7 {[%clk 0:00:20]}  Rc4 {[%clk 0:00:17]} 37. Rf5 {[%clk 0:00:15]}  Nd5 {[%clk 0:00:14]} 38. Nxa5 {[%clk 0:00:14]}  Rxc5 {[%clk 0:00:13]} 39. Nxc6 {[%clk 0:00:14]}  Rxc6 {[%clk 0:00:12]} 40. Rxd5 {[%clk 0:00:14]}  Rc3 {[%clk 0:00:12]} 41. a5 {[%clk 0:00:14]}  Ra3 {[%clk 0:00:12]} 42. f3 {[%clk 0:00:14]}  Kf7 {[%clk 0:00:12]} 43. Kg3 {[%clk 0:00:14]}  Ke6 {[%clk 0:00:12]} 44. Rb5 {[%clk 0:00:14]}  Ra4 {[%clk 0:00:10]} 45. f4 {[%clk 0:00:14]}  Kf6 {[%clk 0:00:09]} 46. Kf3 {[%clk 0:00:14]}  g5 {[%clk 0:00:09]} 47. g3 {[%clk 0:00:13]}  gxf4 {[%clk 0:00:07]} 48. gxf4 {[%clk 0:00:14]}  Ra1 {[%clk 0:00:07]} 49. Rb6+ {[%clk 0:00:13]}  Kf5 {[%clk 0:00:06]} 50. Rb5+ {[%clk 0:00:13]}  Kf6 {[%clk 0:00:07]} 51. Kg4 {[%clk 0:00:13]}  Rg1+ {[%clk 0:00:06]} 52. Kf3 {[%clk 0:00:13]}  Ra1 {[%clk 0:00:07]} 1/2-1/2


[Site "https://www.chess.com"]

[Event "Titled Tuesday Blitz September 28 2021"]
[White "Shahade, Gregory"]
[Black "Lashkin, Jegor"]
[WhiteFideId "2009064"]
[BlackFideId "13907808"]
[WhiteElo "2567"]
[BlackElo "2293"]
[Result "0-1"]
[Round "06"]
[TimeControl "180+1"]
[Date "2021.09.28"]
[WhiteClock "0:00:03"]
[BlackClock "0:00:04"]

1. e4 {[%clk 0:02:59]}  c5 {[%clk 0:02:57]} 2. Nf3 {[%clk 0:02:59]}  d6 {[%clk 0:02:57]} 3. d4 {[%clk 0:02:58]}  cxd4 {[%clk 0:02:58]} 4. Nxd4 {[%clk 0:02:59]}  Nf6 {[%clk 0:02:58]} 5. Nc3 {[%clk 0:03:00]}  a6 {[%clk 0:02:59]} 6. Be3 {[%clk 0:02:59]}  e5 {[%clk 0:03:00]} 7. Nb3 {[%clk 0:02:59]}  Be6 {[%clk 0:03:00]} 8. f3 {[%clk 0:02:58]}  h5 {[%clk 0:03:00]} 9. Nd5 {[%clk 0:02:58]}  Bxd5 {[%clk 0:03:00]} 10. exd5 {[%clk 0:02:58]}  g6 {[%clk 0:03:00]} 11. Qd2 {[%clk 0:02:58]}  Nbd7 {[%clk 0:03:00]} 12. O-O-O {[%clk 0:02:58]}  Nb6 {[%clk 0:03:01]} 13. Kb1 {[%clk 0:02:55]}  Nbxd5 {[%clk 0:03:00]} 14. Bg5 {[%clk 0:02:55]}  Be7 {[%clk 0:03:01]} 15. Bd3 {[%clk 0:02:55]}  Qc7 {[%clk 0:03:00]} 16. Rhe1 {[%clk 0:02:54]}  Nb6 {[%clk 0:02:40]} 17. f4 {[%clk 0:02:45]}  O-O {[%clk 0:02:31]} 18. f5 {[%clk 0:02:36]}  Kg7 {[%clk 0:02:07]} 19. Bh6+ {[%clk 0:02:34]}  Kh7 {[%clk 0:02:04]} 20. Bxf8 {[%clk 0:02:33]}  Rxf8 {[%clk 0:02:05]} 21. fxg6+ {[%clk 0:01:59]}  fxg6 {[%clk 0:02:05]} 22. Qe3 {[%clk 0:01:53]}  Ng4 {[%clk 0:01:42]} 23. Qe4 {[%clk 0:01:37]}  Rf6 {[%clk 0:01:36]} 24. Rf1 {[%clk 0:01:26]}  d5 {[%clk 0:01:34]} 25. Qe1 {[%clk 0:01:23]}  e4 {[%clk 0:01:31]} 26. Rxf6 {[%clk 0:01:19]}  Bxf6 {[%clk 0:01:30]} 27. Be2 {[%clk 0:01:16]}  Ne3 {[%clk 0:01:28]} 28. Rc1 {[%clk 0:01:16]}  Nbc4 {[%clk 0:01:08]} 29. c3 {[%clk 0:01:07]}  Qxh2 {[%clk 0:00:59]} 30. Qf2 {[%clk 0:01:05]}  Bg7 {[%clk 0:00:54]} 31. Nc5 {[%clk 0:00:47]}  Nd2+ {[%clk 0:00:37]} 32. Ka1 {[%clk 0:00:43]}  Qh1 {[%clk 0:00:36]} 33. Bf1 {[%clk 0:00:11]}  Ndxf1 {[%clk 0:00:13]} 34. Qxe3 {[%clk 0:00:10]}  Nxe3 {[%clk 0:00:07]} 35. Rxh1 {[%clk 0:00:10]}  Nxg2 {[%clk 0:00:08]} 36. Ne6 {[%clk 0:00:09]}  Be5 {[%clk 0:00:08]} 37. Rd1 {[%clk 0:00:08]}  e3 {[%clk 0:00:06]} 38. Rxd5 {[%clk 0:00:06]}  e2 {[%clk 0:00:06]} 39. Ng5+ {[%clk 0:00:05]}  Kh6 {[%clk 0:00:04]} 40. Nf3 {[%clk 0:00:05]}  Bg3 {[%clk 0:00:04]} 41. Rd7 {[%clk 0:00:05]}  e1=Q+ {[%clk 0:00:04]} 42. Nxe1 {[%clk 0:00:05]}  Nxe1 {[%clk 0:00:04]} 43. Rxb7 {[%clk 0:00:06]}  h4 {[%clk 0:00:05]} 44. c4 {[%clk 0:00:06]}  h3 {[%clk 0:00:04]} 45. Rd7 {[%clk 0:00:04]}  h2 {[%clk 0:00:04]} 46. Rd8 {[%clk 0:00:05]}  Be5 {[%clk 0:00:04]} 47. Rd2 {[%clk 0:00:02]}  h1=Q {[%clk 0:00:04]} 48. a4 {[%clk 0:00:03]}  Nd3+ {[%clk 0:00:04]} 49. Ka2 {[%clk 0:00:03]}  Nc1+ {[%clk 0:00:04]} 50. Ka3 {[%clk 0:00:03]}  Qf3+ {[%clk 0:00:05]} 51. b3 {[%clk 0:00:03]}  Qxb3# {[%clk 0:00:04]} 0-1


[Site "https://www.chess.com"]

[Event "Titled Tuesday Blitz September 28 2021"]
[White "Shkapenko, Pavel"]
[Black "Demin, Vladimir"]
[WhiteFideId "4151933"]
[BlackFideId "4167457"]
[WhiteElo "2386"]
[BlackElo "2517"]
[Result "1-0"]
[Round "06"]
[TimeControl "180+1"]
[Date "2021.09.28"]
[WhiteClock "0:00:05"]
[BlackClock "0:00:02"]

1. e4 {[%clk 0:03:00]}  Nf6 {[%clk 0:02:57]} 2. e5 {[%clk 0:02:57]}  Nd5 {[%clk 0:02:57]} 3. c4 {[%clk 0:02:57]}  Nb6 {[%clk 0:02:57]} 4. c5 {[%clk 0:02:56]}  Nd5 {[%clk 0:02:57]} 5. Bc4 {[%clk 0:02:55]}  e6 {[%clk 0:02:55]} 6. d4 {[%clk 0:02:55]}  b6 {[%clk 0:02:55]} 7. cxb6 {[%clk 0:02:55]}  axb6 {[%clk 0:02:55]} 8. Ne2 {[%clk 0:02:55]}  d6 {[%clk 0:02:46]} 9. O-O {[%clk 0:02:53]}  Be7 {[%clk 0:02:40]} 10. Ng3 {[%clk 0:02:44]}  O-O {[%clk 0:02:38]} 11. Qg4 {[%clk 0:02:44]}  f5 {[%clk 0:02:33]} 12. exf6 {[%clk 0:02:42]}  Bxf6 {[%clk 0:02:27]} 13. Re1 {[%clk 0:02:40]}  Kh8 {[%clk 0:02:26]} 14. Nc3 {[%clk 0:02:36]}  Nxc3 {[%clk 0:02:17]} 15. bxc3 {[%clk 0:02:36]}  d5 {[%clk 0:02:16]} 16. Bb3 {[%clk 0:02:34]}  e5 {[%clk 0:02:12]} 17. Qh5 {[%clk 0:02:23]}  exd4 {[%clk 0:02:12]} 18. Bxd5 {[%clk 0:02:19]}  Ra5 {[%clk 0:02:11]} 19. c4 {[%clk 0:02:19]}  d3 {[%clk 0:02:02]} 20. Bd2 {[%clk 0:02:13]}  Bxa1 {[%clk 0:01:50]} 21. Rxa1 {[%clk 0:02:12]}  Rxd5 {[%clk 0:01:40]} 22. cxd5 {[%clk 0:02:07]}  Nd7 {[%clk 0:01:40]} 23. Ne4 {[%clk 0:00:57]}  Nf6 {[%clk 0:01:30]} 24. Nxf6 {[%clk 0:00:57]}  Qxf6 {[%clk 0:01:31]} 25. Rf1 {[%clk 0:00:55]}  Bf5 {[%clk 0:01:29]} 26. Qg5 {[%clk 0:00:48]}  Qxg5 {[%clk 0:01:17]} 27. Bxg5 {[%clk 0:00:48]}  Bg6 {[%clk 0:01:18]} 28. Rc1 {[%clk 0:00:46]}  Re8 {[%clk 0:01:04]} 29. h4 {[%clk 0:00:28]}  h6 {[%clk 0:01:04]} 30. Bf4 {[%clk 0:00:28]}  Rd8 {[%clk 0:01:04]} 31. Rxc7 {[%clk 0:00:14]}  Rxd5 {[%clk 0:01:04]} 32. Bd2 {[%clk 0:00:15]}  Rc5 {[%clk 0:00:48]} 33. Rxc5 {[%clk 0:00:14]}  bxc5 {[%clk 0:00:49]} 34. a4 {[%clk 0:00:14]}  Be4 {[%clk 0:00:40]} 35. a5 {[%clk 0:00:14]}  Bb7 {[%clk 0:00:40]} 36. f3 {[%clk 0:00:14]}  Kg8 {[%clk 0:00:40]} 37. Kf2 {[%clk 0:00:14]}  c4 {[%clk 0:00:36]} 38. Ke3 {[%clk 0:00:14]}  g5 {[%clk 0:00:27]} 39. hxg5 {[%clk 0:00:14]}  hxg5 {[%clk 0:00:27]} 40. Kd4 {[%clk 0:00:14]}  g4 {[%clk 0:00:25]} 41. fxg4 {[%clk 0:00:12]}  Bxg2 {[%clk 0:00:24]} 42. a6 {[%clk 0:00:12]}  Kf7 {[%clk 0:00:21]} 43. Kxc4 {[%clk 0:00:10]}  Ke7 {[%clk 0:00:17]} 44. Kc5 {[%clk 0:00:08]}  Kd7 {[%clk 0:00:16]} 45. g5 {[%clk 0:00:07]}  Ke6 {[%clk 0:00:10]} 46. Kb6 {[%clk 0:00:06]}  Be4 {[%clk 0:00:05]} 47. Kc7 {[%clk 0:00:06]}  Kf5 {[%clk 0:00:03]} 48. a7 {[%clk 0:00:06]}  Bf3 {[%clk 0:00:02]} 49. Kb8 {[%clk 0:00:05]} 1-0


[Site "https://www.chess.com"]

[Event "Titled Tuesday Blitz September 28 2021"]
[White "Shuvalov, Evgenij"]
[Black "Levitskiy, Andrey"]
[WhiteFideId "4187237"]
[BlackFideId "14132885"]
[WhiteElo "2129"]
[BlackElo "2340"]
[Result "0-1"]
[Round "06"]
[TimeControl "180+1"]
[Date "2021.09.28"]
[WhiteClock "0:00:14"]
[BlackClock "0:00:16"]

1. Nf3 {[%clk 0:02:14]}  c5 {[%clk 0:02:59]} 2. c4 {[%clk 0:02:14]}  Nc6 {[%clk 0:02:59]} 3. d4 {[%clk 0:02:14]}  cxd4 {[%clk 0:03:00]} 4. Nxd4 {[%clk 0:02:14]}  g6 {[%clk 0:03:00]} 5. e4 {[%clk 0:02:12]}  Nf6 {[%clk 0:03:00]} 6. Be3 {[%clk 0:02:13]}  Nxe4 {[%clk 0:02:57]} 7. Bd3 {[%clk 0:02:11]}  Qa5+ {[%clk 0:02:51]} 8. Kf1 {[%clk 0:01:53]}  Nf6 {[%clk 0:02:38]} 9. Nc3 {[%clk 0:01:52]}  Bg7 {[%clk 0:02:37]} 10. Nb3 {[%clk 0:01:47]}  Qd8 {[%clk 0:02:32]} 11. h4 {[%clk 0:01:44]}  d6 {[%clk 0:02:08]} 12. Be2 {[%clk 0:01:42]}  h5 {[%clk 0:02:03]} 13. Bg5 {[%clk 0:01:41]}  O-O {[%clk 0:01:46]} 14. Qd2 {[%clk 0:01:40]}  Be6 {[%clk 0:01:38]} 15. Nd5 {[%clk 0:01:31]}  Bxd5 {[%clk 0:01:22]} 16. cxd5 {[%clk 0:01:31]}  Ne5 {[%clk 0:01:22]} 17. f3 {[%clk 0:01:24]}  Rc8 {[%clk 0:01:20]} 18. Na5 {[%clk 0:01:08]}  Qd7 {[%clk 0:00:51]} 19. Rd1 {[%clk 0:00:57]}  Rc5 {[%clk 0:00:46]} 20. Be3 {[%clk 0:00:49]}  Rxd5 {[%clk 0:00:46]} 21. Qe1 {[%clk 0:00:45]}  Rxd1 {[%clk 0:00:43]} 22. Qxd1 {[%clk 0:00:46]}  Qe6 {[%clk 0:00:40]} 23. Kf2 {[%clk 0:00:40]}  Qxa2 {[%clk 0:00:25]} 24. Qa1 {[%clk 0:00:33]}  Qe6 {[%clk 0:00:24]} 25. Nxb7 {[%clk 0:00:27]}  Nd5 {[%clk 0:00:22]} 26. Qc1 {[%clk 0:00:20]}  Rc8 {[%clk 0:00:21]} 27. Qd2 {[%clk 0:00:20]}  Nc4 {[%clk 0:00:18]} 28. Bxc4 {[%clk 0:00:19]}  Rxc4 {[%clk 0:00:19]} 29. Re1 {[%clk 0:00:18]}  Qf5 {[%clk 0:00:17]} 30. Bxa7 {[%clk 0:00:17]}  Rc2 {[%clk 0:00:17]} 31. Re2 {[%clk 0:00:16]}  Rxd2 {[%clk 0:00:17]} 32. Rxd2 {[%clk 0:00:17]}  Bh6 {[%clk 0:00:15]} 33. Re2 {[%clk 0:00:17]}  Qf6 {[%clk 0:00:15]} 34. Nd8 {[%clk 0:00:15]}  Qxh4+ {[%clk 0:00:15]} 35. Kf1 {[%clk 0:00:14]}  Qh1+ {[%clk 0:00:14]} 36. Bg1 {[%clk 0:00:14]}  Be3 {[%clk 0:00:13]} 37. Rxe3 {[%clk 0:00:13]}  Nxe3+ {[%clk 0:00:14]} 38. Kf2 {[%clk 0:00:13]}  Qxg2+ {[%clk 0:00:14]} 39. Kxe3 {[%clk 0:00:14]}  Qxg1+ {[%clk 0:00:15]} 40. Ke4 {[%clk 0:00:14]}  Qb1+ {[%clk 0:00:16]} 41. Kd5 {[%clk 0:00:14]}  Qxb2 {[%clk 0:00:15]} 42. Kc6 {[%clk 0:00:14]}  Qc3+ {[%clk 0:00:15]} 43. Kd7 {[%clk 0:00:14]}  Qxf3 {[%clk 0:00:16]} 44. Kxe7 {[%clk 0:00:15]}  Qf5 {[%clk 0:00:15]} 45. Kxd6 {[%clk 0:00:13]}  Qf6+ {[%clk 0:00:15]} 46. Kd7 {[%clk 0:00:13]}  Qxd8+ {[%clk 0:00:15]} 47. Kxd8 {[%clk 0:00:14]}  h4 {[%clk 0:00:16]} 0-1


[Site "https://www.chess.com"]

[Event "Titled Tuesday Blitz September 28 2021"]
[White "Stribuk, Artiom"]
[Black "Guliev, Logman"]
[WhiteFideId "13515659"]
[BlackFideId "13400061"]
[WhiteElo "2224"]
[BlackElo "2128"]
[Result "1-0"]
[Round "06"]
[TimeControl "180+1"]
[Date "2021.09.28"]
[WhiteClock "0:00:02"]
[BlackClock "0:00:01"]

1. d4 {[%clk 0:03:00]}  Nf6 {[%clk 0:02:58]} 2. c4 {[%clk 0:02:58]}  e6 {[%clk 0:02:58]} 3. g3 {[%clk 0:02:57]}  Bb4+ {[%clk 0:02:58]} 4. Nd2 {[%clk 0:02:56]}  O-O {[%clk 0:02:56]} 5. Bg2 {[%clk 0:02:56]}  d5 {[%clk 0:02:57]} 6. Nf3 {[%clk 0:02:56]}  dxc4 {[%clk 0:02:56]} 7. O-O {[%clk 0:02:56]}  Bxd2 {[%clk 0:02:52]} 8. Bxd2 {[%clk 0:02:52]}  c6 {[%clk 0:02:50]} 9. a4 {[%clk 0:02:49]}  a5 {[%clk 0:02:24]} 10. Bg5 {[%clk 0:02:28]}  h6 {[%clk 0:02:14]} 11. Bxf6 {[%clk 0:02:25]}  Qxf6 {[%clk 0:02:15]} 12. Qc2 {[%clk 0:02:18]}  b5 {[%clk 0:02:12]} 13. axb5 {[%clk 0:01:57]}  cxb5 {[%clk 0:02:12]} 14. Ng5 {[%clk 0:01:58]}  hxg5 {[%clk 0:02:03]} 15. Bxa8 {[%clk 0:01:56]}  Qxd4 {[%clk 0:02:02]} 16. Rxa5 {[%clk 0:01:54]}  Qb6 {[%clk 0:02:00]} 17. Raa1 {[%clk 0:01:20]}  Nc6 {[%clk 0:01:58]} 18. Qe4 {[%clk 0:01:20]}  Nb4 {[%clk 0:01:31]} 19. Rfd1 {[%clk 0:01:14]}  Qc5 {[%clk 0:01:09]} 20. Rac1 {[%clk 0:00:44]}  Ba6 {[%clk 0:01:06]} 21. Bb7 {[%clk 0:00:42]}  Bxb7 {[%clk 0:01:01]} 22. Qxb7 {[%clk 0:00:43]}  Nd5 {[%clk 0:01:00]} 23. Ra1 {[%clk 0:00:33]}  b4 {[%clk 0:00:54]} 24. Rdc1 {[%clk 0:00:32]}  c3 {[%clk 0:00:53]} 25. bxc3 {[%clk 0:00:28]}  bxc3 {[%clk 0:00:52]} 26. Ra8 {[%clk 0:00:23]}  Rxa8 {[%clk 0:00:46]} 27. Qxa8+ {[%clk 0:00:24]}  Kh7 {[%clk 0:00:47]} 28. Qa4 {[%clk 0:00:22]}  f5 {[%clk 0:00:43]} 29. Qb3 {[%clk 0:00:20]}  Qd4 {[%clk 0:00:38]} 30. Qc2 {[%clk 0:00:20]}  g4 {[%clk 0:00:34]} 31. Rd1 {[%clk 0:00:19]}  Qc4 {[%clk 0:00:32]} 32. Rc1 {[%clk 0:00:17]}  Kg6 {[%clk 0:00:26]} 33. Qd3 {[%clk 0:00:14]}  Qb4 {[%clk 0:00:23]} 34. Rc2 {[%clk 0:00:09]}  Qb1+ {[%clk 0:00:20]} 35. Kg2 {[%clk 0:00:08]}  Nb4 {[%clk 0:00:20]} 36. Qd7 {[%clk 0:00:04]}  Qxc2 {[%clk 0:00:15]} 37. Qe8+ {[%clk 0:00:04]}  Kf6 {[%clk 0:00:11]} 38. Qf8+ {[%clk 0:00:04]}  Ke5 {[%clk 0:00:11]} 39. Qxg7+ {[%clk 0:00:02]}  Ke4 {[%clk 0:00:06]} 40. Qb7+ {[%clk 0:00:02]}  Nd5 {[%clk 0:00:06]} 41. Qb5 {[%clk 0:00:02]}  Qd2 {[%clk 0:00:04]} 42. Qc4+ {[%clk 0:00:02]}  Qd4 {[%clk 0:00:03]} 43. f3+ {[%clk 0:00:03]}  Ke5 {[%clk 0:00:03]} 44. Qb5 {[%clk 0:00:02]}  gxf3+ {[%clk 0:00:01]} 45. exf3 {[%clk 0:00:02]}  Qd3 {[%clk 0:00:01]} 46. Qxd3 {[%clk 0:00:02]} 1-0


[Site "https://www.chess.com"]